[Event "Titled Tuesday Blitz February 14 Early 2023"]
[White "Andrews, Todd"]
[Black "Acor, Corey"]
[WhiteFideId "2012456"]
[BlackFideId "2024861"]
[WhiteElo "2220"]
[BlackElo "2216"]
[Result "0-1"]
[Round "01"]
[TimeControl "180+2"]
[Date "2023.02.15"]
[WhiteClock "0:00:17"]
[BlackClock "0:00:15"]

1. e4 {[%clk 0:03:00]}  e5 {[%clk 0:02:04]} 2. Nf3 {[%clk 0:02:55]}  Nc6 {[%clk 0:02:03]} 3. d4 {[%clk 0:02:56]}  exd4 {[%clk 0:01:54]} 4. Nxd4 {[%clk 0:02:56]}  Bc5 {[%clk 0:01:38]} 5. Be3 {[%clk 0:02:54]}  Qf6 {[%clk 0:01:36]} 6. c3 {[%clk 0:02:54]}  Nge7 {[%clk 0:01:35]} 7. Nc2 {[%clk 0:02:53]}  Bxe3 {[%clk 0:01:35]} 8. Nxe3 {[%clk 0:02:54]}  Qe5 {[%clk 0:01:35]} 9. Qd3 {[%clk 0:02:24]}  d6 {[%clk 0:01:32]} 10. Nd2 {[%clk 0:02:20]}  f5 {[%clk 0:01:29]} 11. exf5 {[%clk 0:02:12]}  Nxf5 {[%clk 0:01:30]} 12. Nc4 {[%clk 0:02:12]}  Qe7 {[%clk 0:01:22]} 13. O-O-O {[%clk 0:02:02]}  O-O {[%clk 0:01:22]} 14. Nd5 {[%clk 0:01:59]}  Qf7 {[%clk 0:01:22]} 15. Be2 {[%clk 0:01:50]}  Be6 {[%clk 0:01:11]} 16. Bf3 {[%clk 0:01:46]}  b5 {[%clk 0:01:08]} 17. Nce3 {[%clk 0:01:01]}  Ne5 {[%clk 0:01:07]} 18. Qe4 {[%clk 0:00:53]}  Nxe3 {[%clk 0:01:03]} 19. fxe3 {[%clk 0:00:46]}  Nxf3 {[%clk 0:00:59]} 20. gxf3 {[%clk 0:00:41]}  Bxd5 {[%clk 0:00:59]} 21. Rxd5 {[%clk 0:00:40]}  Rae8 {[%clk 0:00:57]} 22. Qd3 {[%clk 0:00:28]}  Qxf3 {[%clk 0:00:55]} 23. Re1 {[%clk 0:00:26]}  a6 {[%clk 0:00:45]} 24. Rg5 {[%clk 0:00:25]}  Rf7 {[%clk 0:00:39]} 25. h4 {[%clk 0:00:24]}  Rfe7 {[%clk 0:00:39]} 26. Reg1 {[%clk 0:00:21]}  Kh8 {[%clk 0:00:29]} 27. R5g3 {[%clk 0:00:21]}  Qf2 {[%clk 0:00:26]} 28. Qd4 {[%clk 0:00:19]}  Qf6 {[%clk 0:00:21]} 29. Qd3 {[%clk 0:00:19]}  Qxh4 {[%clk 0:00:18]} 30. e4 {[%clk 0:00:18]}  Qxe4 {[%clk 0:00:16]} 31. Qxe4 {[%clk 0:00:18]}  Rxe4 {[%clk 0:00:17]} 32. Rxg7 {[%clk 0:00:18]}  Re1+ {[%clk 0:00:18]} 33. Kd2 {[%clk 0:00:18]}  Rxg1 {[%clk 0:00:16]} 34. Rxg1 {[%clk 0:00:19]}  Rg8 {[%clk 0:00:16]} 35. Re1 {[%clk 0:00:18]}  h5 {[%clk 0:00:14]} 36. Re7 {[%clk 0:00:18]}  Rg7 {[%clk 0:00:15]} 37. Re8+ {[%clk 0:00:17]}  Kh7 {[%clk 0:00:15]} 38. Ra8 {[%clk 0:00:18]}  h4 {[%clk 0:00:16]} 39. Re8 {[%clk 0:00:16]}  h3 {[%clk 0:00:15]} 40. Re3 {[%clk 0:00:16]}  Rg2+ {[%clk 0:00:13]} 41. Kd3 {[%clk 0:00:17]}  h2 {[%clk 0:00:14]} 42. Rh3+ {[%clk 0:00:17]}  Kg6 {[%clk 0:00:15]} 43. a4 {[%clk 0:00:17]}  c5 {[%clk 0:00:13]} 44. axb5 {[%clk 0:00:17]}  axb5 {[%clk 0:00:14]} 45. b3 {[%clk 0:00:17]}  Kf5 {[%clk 0:00:13]} 46. Ke3 {[%clk 0:00:17]}  Kg4 {[%clk 0:00:12]} 47. Rh8 {[%clk 0:00:17]}  Rg3+ {[%clk 0:00:12]} 48. Ke4 {[%clk 0:00:16]}  Rh3 {[%clk 0:00:13]} 49. Rg8+ {[%clk 0:00:16]}  Kh4 {[%clk 0:00:13]} 50. Rh8+ {[%clk 0:00:16]}  Kg3 {[%clk 0:00:14]} 51. Rg8+ {[%clk 0:00:16]}  Kf2 {[%clk 0:00:14]} 52. Rf8+ {[%clk 0:00:17]}  Ke2 {[%clk 0:00:14]} 53. Kd5 {[%clk 0:00:17]}  h1=Q+ {[%clk 0:00:14]} 54. Kxd6 {[%clk 0:00:18]}  Rxc3 {[%clk 0:00:14]} 55. b4 {[%clk 0:00:17]}  cxb4 {[%clk 0:00:14]} 56. Re8+ {[%clk 0:00:18]}  Re3 {[%clk 0:00:14]} 57. Rf8 {[%clk 0:00:17]}  Qd1+ {[%clk 0:00:15]} 58. Kc5 {[%clk 0:00:16]}  Rc3+ {[%clk 0:00:16]} 59. Kb6 {[%clk 0:00:17]}  Qd6+ {[%clk 0:00:16]} 60. Ka5 {[%clk 0:00:17]}  Qxf8 {[%clk 0:00:15]} 0-1


[Site "https://www.chess.com"]

[Event "Titled Tuesday Blitz February 14 Early 2023"]
[White "Shubenkova, Veronika"]
[Black "Orozbaev, Eldiar"]
[WhiteFideId "44124040"]
[BlackFideId "13802240"]
[WhiteElo "1960"]
[BlackElo "2235"]
[Result "0-1"]
[Round "01"]
[TimeControl "180+2"]
[Date "2023.02.15"]
[WhiteClock "0:01:30"]
[BlackClock "0:01:01"]

1. e4 {[%clk 0:02:58]}  e6 {[%clk 0:02:51]} 2. d4 {[%clk 0:02:58]}  d5 {[%clk 0:02:48]} 3. exd5 {[%clk 0:02:58]}  exd5 {[%clk 0:02:30]} 4. Nf3 {[%clk 0:02:59]}  Nc6 {[%clk 0:02:29]} 5. c3 {[%clk 0:02:59]}  Bd6 {[%clk 0:02:28]} 6. Bd3 {[%clk 0:02:58]}  Nge7 {[%clk 0:02:27]} 7. O-O {[%clk 0:02:56]}  Bg4 {[%clk 0:02:26]} 8. Nbd2 {[%clk 0:02:56]}  Qd7 {[%clk 0:02:25]} 9. Re1 {[%clk 0:02:56]}  O-O-O {[%clk 0:02:09]} 10. b4 {[%clk 0:02:56]}  Rde8 {[%clk 0:02:06]} 11. a4 {[%clk 0:02:55]}  Bf5 {[%clk 0:02:02]} 12. Nf1 {[%clk 0:02:54]}  Bxd3 {[%clk 0:02:00]} 13. Qxd3 {[%clk 0:02:54]}  Ng6 {[%clk 0:02:01]} 14. Bd2 {[%clk 0:02:54]}  Bf4 {[%clk 0:01:59]} 15. a5 {[%clk 0:02:52]}  Bxd2 {[%clk 0:01:54]} 16. Qxd2 {[%clk 0:02:52]}  h5 {[%clk 0:01:52]} 17. b5 {[%clk 0:02:52]}  Nd8 {[%clk 0:01:49]} 18. b6 {[%clk 0:02:53]}  a6 {[%clk 0:01:49]} 19. bxc7 {[%clk 0:02:53]}  Qxc7 {[%clk 0:01:50]} 20. Ne3 {[%clk 0:02:50]}  Nf4 {[%clk 0:01:43]} 21. Rec1 {[%clk 0:02:44]}  Rh6 {[%clk 0:01:08]} 22. c4 {[%clk 0:02:44]}  Rc6 {[%clk 0:01:08]} 23. cxd5 {[%clk 0:02:42]}  Rxc1+ {[%clk 0:01:07]} 24. Nf1 {[%clk 0:01:56]}  Rxa1 {[%clk 0:01:04]} 25. Ne5 {[%clk 0:01:52]}  Qc1 {[%clk 0:00:58]} 26. Qxc1+ {[%clk 0:01:36]}  Rxc1 {[%clk 0:00:59]} 27. g3 {[%clk 0:01:32]}  Ne2+ {[%clk 0:00:59]} 28. Kg2 {[%clk 0:01:32]}  Nxd4 {[%clk 0:01:00]} 29. f4 {[%clk 0:01:31]}  Rxe5 {[%clk 0:01:00]} 30. fxe5 {[%clk 0:01:31]}  Rxf1 {[%clk 0:01:00]} 31. Kxf1 {[%clk 0:01:30]}  Nf3 {[%clk 0:01:01]} 0-1


[Site "https://www.chess.com"]

[Event "Titled Tuesday Blitz February 14 Early 2023"]
[White "Chernov, Mikhail"]
[Black "Oro, Faustino"]
[WhiteFideId "24143170"]
[BlackFideId "20000197"]
[WhiteElo "2205"]
[BlackElo "2269"]
[Result "1-0"]
[Round "01"]
[TimeControl "180+2"]
[Date "2023.02.15"]
[WhiteClock "0:00:26"]
[BlackClock "0:01:40"]

1. e4 {[%clk 0:03:00]}  c5 {[%clk 0:02:59]} 2. Nf3 {[%clk 0:02:59]}  d6 {[%clk 0:03:00]} 3. d4 {[%clk 0:03:00]}  cxd4 {[%clk 0:03:01]} 4. Nxd4 {[%clk 0:03:01]}  Nf6 {[%clk 0:03:01]} 5. Nc3 {[%clk 0:03:01]}  a6 {[%clk 0:03:01]} 6. Bc4 {[%clk 0:03:02]}  e6 {[%clk 0:03:02]} 7. Bb3 {[%clk 0:03:03]}  Be7 {[%clk 0:03:02]} 8. g4 {[%clk 0:03:02]}  b5 {[%clk 0:02:49]} 9. g5 {[%clk 0:03:02]}  Nfd7 {[%clk 0:02:50]} 10. Bxe6 {[%clk 0:03:02]}  fxe6 {[%clk 0:02:50]} 11. Nxe6 {[%clk 0:03:03]}  Qa5 {[%clk 0:02:50]} 12. Nxg7+ {[%clk 0:03:03]}  Kf7 {[%clk 0:02:50]} 13. Nf5 {[%clk 0:03:04]}  Bb7 {[%clk 0:02:34]} 14. Qh5+ {[%clk 0:02:46]}  Ke6 {[%clk 0:01:59]} 15. Ng7+ {[%clk 0:01:27]}  Ke5 {[%clk 0:01:56]} 16. Be3 {[%clk 0:00:58]}  Rf8 {[%clk 0:01:45]} 17. f4+ {[%clk 0:00:43]}  Rxf4 {[%clk 0:01:44]} 18. Bxf4+ {[%clk 0:00:37]}  Kxf4 {[%clk 0:01:44]} 19. O-O+ {[%clk 0:00:35]}  Ke3 {[%clk 0:01:40]} 20. Nf5+ {[%clk 0:00:28]}  Kd2 {[%clk 0:01:40]} 21. Qe2# {[%clk 0:00:26]} 1-0


[Site "https://www.chess.com"]

[Event "Titled Tuesday Blitz February 14 Early 2023"]
[White "Forgacs, Attila Jr."]
[Black "Vasquez Schroeder, Rodrigo"]
[WhiteFideId "773654"]
[BlackFideId "3400042"]
[WhiteElo "2264"]
[BlackElo "2524"]
[Result "1-0"]
[Round "01"]
[TimeControl "180+2"]
[Date "2023.02.15"]
[WhiteClock "0:00:04"]
[BlackClock "0:01:22"]

1. e4 {[%clk 0:03:00]}  c6 {[%clk 0:02:58]} 2. d4 {[%clk 0:02:58]}  d5 {[%clk 0:02:58]} 3. Nd2 {[%clk 0:02:54]}  dxe4 {[%clk 0:02:58]} 4. Nxe4 {[%clk 0:02:55]}  Nd7 {[%clk 0:02:58]} 5. Ng5 {[%clk 0:02:55]}  Ngf6 {[%clk 0:02:57]} 6. Bd3 {[%clk 0:02:47]}  e6 {[%clk 0:02:57]} 7. Qe2 {[%clk 0:02:38]}  Bd6 {[%clk 0:02:57]} 8. N1f3 {[%clk 0:02:34]}  h6 {[%clk 0:02:56]} 9. Ne4 {[%clk 0:02:34]}  Nxe4 {[%clk 0:02:57]} 10. Qxe4 {[%clk 0:02:34]}  Qc7 {[%clk 0:02:55]} 11. c3 {[%clk 0:02:34]}  b6 {[%clk 0:02:53]} 12. Bd2 {[%clk 0:02:31]}  Bb7 {[%clk 0:02:53]} 13. Qe2 {[%clk 0:02:30]}  c5 {[%clk 0:02:52]} 14. O-O {[%clk 0:02:24]}  O-O {[%clk 0:02:51]} 15. Rac1 {[%clk 0:02:13]}  Bxf3 {[%clk 0:02:42]} 16. Qxf3 {[%clk 0:02:11]}  Bxh2+ {[%clk 0:02:42]} 17. Kh1 {[%clk 0:02:11]}  Bd6 {[%clk 0:02:42]} 18. dxc5 {[%clk 0:01:30]}  Nxc5 {[%clk 0:02:38]} 19. Bb1 {[%clk 0:01:23]}  Rfd8 {[%clk 0:02:29]} 20. Qg4 {[%clk 0:01:09]}  Kf8 {[%clk 0:02:26]} 21. b4 {[%clk 0:00:59]}  Nd7 {[%clk 0:02:25]} 22. c4 {[%clk 0:00:57]}  Nf6 {[%clk 0:02:20]} 23. Qf3 {[%clk 0:00:55]}  Be5 {[%clk 0:02:18]} 24. Rfd1 {[%clk 0:00:40]}  Rac8 {[%clk 0:02:17]} 25. c5 {[%clk 0:00:39]}  bxc5 {[%clk 0:02:16]} 26. Rxc5 {[%clk 0:00:38]}  Qd6 {[%clk 0:02:16]} 27. Rxc8 {[%clk 0:00:27]}  Rxc8 {[%clk 0:02:16]} 28. Bxh6 {[%clk 0:00:18]}  Qxb4 {[%clk 0:02:11]} 29. Be3 {[%clk 0:00:12]}  Qh4+ {[%clk 0:02:05]} 30. Kg1 {[%clk 0:00:12]}  Qh2+ {[%clk 0:02:00]} 31. Kf1 {[%clk 0:00:12]}  Nd5 {[%clk 0:01:59]} 32. g3 {[%clk 0:00:08]}  Qh3+ {[%clk 0:01:51]} 33. Kg1 {[%clk 0:00:07]}  Nc3 {[%clk 0:01:41]} 34. Rc1 {[%clk 0:00:06]}  Rb8 {[%clk 0:01:32]} 35. Bc5+ {[%clk 0:00:05]}  Kg8 {[%clk 0:01:29]} 36. Bd3 {[%clk 0:00:04]}  a5 {[%clk 0:01:24]} 37. Bf1 {[%clk 0:00:05]}  Nd5 {[%clk 0:01:22]} 38. Bxh3 {[%clk 0:00:04]} 1-0


[Site "https://www.chess.com"]

[Event "Titled Tuesday Blitz February 14 Early 2023"]
[White "Gutkin, Ilya"]
[Black "Pakleza, Zbigniew"]
[WhiteFideId "16203470"]
[BlackFideId "1119290"]
[WhiteElo "2273"]
[BlackElo "2494"]
[Result "0-1"]
[Round "01"]
[TimeControl "180+2"]
[Date "2023.02.15"]
[WhiteClock "0:00:04"]
[BlackClock "0:00:36"]

1. Nf3 {[%clk 0:03:00]}  d5 {[%clk 0:03:00]} 2. g3 {[%clk 0:03:01]}  Nf6 {[%clk 0:03:00]} 3. Bg2 {[%clk 0:03:01]}  Bf5 {[%clk 0:03:00]} 4. c4 {[%clk 0:03:01]}  c6 {[%clk 0:03:01]} 5. Qb3 {[%clk 0:03:01]}  Qb6 {[%clk 0:03:01]} 6. d3 {[%clk 0:03:02]}  e6 {[%clk 0:03:00]} 7. Be3 {[%clk 0:03:02]}  Qxb3 {[%clk 0:03:00]} 8. axb3 {[%clk 0:03:03]}  a6 {[%clk 0:02:59]} 9. Nc3 {[%clk 0:02:38]}  Nbd7 {[%clk 0:02:58]} 10. cxd5 {[%clk 0:02:34]}  exd5 {[%clk 0:02:52]} 11. Nd4 {[%clk 0:02:34]}  Bg6 {[%clk 0:02:52]} 12. Nc2 {[%clk 0:02:34]}  Bd6 {[%clk 0:02:44]} 13. b4 {[%clk 0:02:33]}  O-O {[%clk 0:02:43]} 14. h3 {[%clk 0:02:34]}  Rfe8 {[%clk 0:02:40]} 15. Kd2 {[%clk 0:01:51]}  Rad8 {[%clk 0:02:30]} 16. Rhg1 {[%clk 0:01:44]}  h6 {[%clk 0:02:29]} 17. f4 {[%clk 0:01:34]}  Bc7 {[%clk 0:02:18]} 18. g4 {[%clk 0:01:29]}  Bh7 {[%clk 0:02:12]} 19. Raf1 {[%clk 0:01:24]}  Nb6 {[%clk 0:01:54]} 20. Bd4 {[%clk 0:01:21]}  Nfd7 {[%clk 0:01:43]} 21. e3 {[%clk 0:01:07]}  Nc8 {[%clk 0:01:34]} 22. Bf3 {[%clk 0:01:02]}  Nd6 {[%clk 0:01:25]} 23. Be2 {[%clk 0:00:51]}  b6 {[%clk 0:01:05]} 24. Rf3 {[%clk 0:00:20]}  Nf8 {[%clk 0:01:03]} 25. f5 {[%clk 0:00:18]}  f6 {[%clk 0:00:59]} 26. h4 {[%clk 0:00:16]}  Nd7 {[%clk 0:01:00]} 27. Rfg3 {[%clk 0:00:12]}  Kf8 {[%clk 0:00:49]} 28. Bf3 {[%clk 0:00:09]}  Ne5 {[%clk 0:00:43]} 29. Bg2 {[%clk 0:00:08]}  Ndc4+ {[%clk 0:00:36]} 30. Kc1 {[%clk 0:00:04]}  Nxd3+ {[%clk 0:00:36]} 0-1


[Site "https://www.chess.com"]

[Event "Titled Tuesday Blitz February 14 Early 2023"]
[White "Kukhmazov, Arsen"]
[Black "Srebrnic, Marko"]
[WhiteFideId "24108260"]
[BlackFideId "14603616"]
[WhiteElo "2512"]
[BlackElo "2366"]
[Result "1-0"]
[Round "01"]
[TimeControl "180+2"]
[Date "2023.02.15"]
[WhiteClock "0:00:12"]
[BlackClock "0:00:21"]

1. b3 {[%clk 0:02:55]}  c5 {[%clk 0:02:57]} 2. Bb2 {[%clk 0:02:56]}  Nc6 {[%clk 0:02:56]} 3. f4 {[%clk 0:02:50]}  Nf6 {[%clk 0:02:49]} 4. e3 {[%clk 0:02:47]}  g6 {[%clk 0:02:47]} 5. Nf3 {[%clk 0:02:46]}  Bg7 {[%clk 0:02:47]} 6. Bb5 {[%clk 0:02:47]}  O-O {[%clk 0:02:47]} 7. O-O {[%clk 0:02:47]}  Qc7 {[%clk 0:02:42]} 8. Qe2 {[%clk 0:02:36]}  d6 {[%clk 0:02:34]} 9. a4 {[%clk 0:02:31]}  Bf5 {[%clk 0:02:27]} 10. Bxc6 {[%clk 0:02:21]}  Qxc6 {[%clk 0:02:25]} 11. d3 {[%clk 0:02:21]}  Bg4 {[%clk 0:02:17]} 12. Nbd2 {[%clk 0:02:12]}  Nd5 {[%clk 0:02:10]} 13. Bxg7 {[%clk 0:02:12]}  Kxg7 {[%clk 0:02:10]} 14. h3 {[%clk 0:02:10]}  Bxf3 {[%clk 0:02:09]} 15. Nxf3 {[%clk 0:02:10]}  b6 {[%clk 0:02:01]} 16. Qf2 {[%clk 0:02:09]}  a6 {[%clk 0:01:57]} 17. c4 {[%clk 0:01:24]}  Nb4 {[%clk 0:01:56]} 18. d4 {[%clk 0:01:25]}  Qe4 {[%clk 0:01:46]} 19. Ng5 {[%clk 0:01:22]}  Qc2 {[%clk 0:01:43]} 20. f5 {[%clk 0:01:16]}  Qxf2+ {[%clk 0:01:40]} 21. Rxf2 {[%clk 0:01:17]}  b5 {[%clk 0:01:23]} 22. axb5 {[%clk 0:01:12]}  axb5 {[%clk 0:01:24]} 23. Rxa8 {[%clk 0:01:13]}  Rxa8 {[%clk 0:01:24]} 24. fxg6 {[%clk 0:01:14]}  f6 {[%clk 0:01:08]} 25. Ne6+ {[%clk 0:01:11]}  Kxg6 {[%clk 0:01:08]} 26. dxc5 {[%clk 0:01:07]}  dxc5 {[%clk 0:01:07]} 27. cxb5 {[%clk 0:01:07]}  Rb8 {[%clk 0:00:48]} 28. Nxc5 {[%clk 0:00:49]}  Rxb5 {[%clk 0:00:49]} 29. Ne6 {[%clk 0:00:50]}  Nd5 {[%clk 0:00:43]} 30. Nd4 {[%clk 0:00:49]}  Rc5 {[%clk 0:00:39]} 31. Rf3 {[%clk 0:00:36]}  Rc1+ {[%clk 0:00:32]} 32. Kh2 {[%clk 0:00:37]}  e5 {[%clk 0:00:28]} 33. Rg3+ {[%clk 0:00:37]}  Kf7 {[%clk 0:00:28]} 34. Nf5 {[%clk 0:00:38]}  Rc2 {[%clk 0:00:25]} 35. Rg7+ {[%clk 0:00:36]}  Ke6 {[%clk 0:00:25]} 36. e4 {[%clk 0:00:36]}  h5 {[%clk 0:00:18]} 37. Ra7 {[%clk 0:00:30]}  Nc7 {[%clk 0:00:17]} 38. b4 {[%clk 0:00:28]}  Rc4 {[%clk 0:00:14]} 39. b5 {[%clk 0:00:18]}  Rxe4 {[%clk 0:00:14]} 40. Ng7+ {[%clk 0:00:12]}  Kd6 {[%clk 0:00:14]} 41. b6 {[%clk 0:00:13]}  Nd5 {[%clk 0:00:14]} 42. b7 {[%clk 0:00:11]}  Rb4 {[%clk 0:00:14]} 43. Ne8+ {[%clk 0:00:05]}  Kc6 {[%clk 0:00:14]} 44. Ra6+ {[%clk 0:00:06]}  Kxb7 {[%clk 0:00:14]} 45. Rd6 {[%clk 0:00:07]}  Nc7 {[%clk 0:00:14]} 46. Nxf6 {[%clk 0:00:07]}  Rc4 {[%clk 0:00:15]} 47. Rd7 {[%clk 0:00:07]}  e4 {[%clk 0:00:15]} 48. Re7 {[%clk 0:00:07]}  e3 {[%clk 0:00:15]} 49. Rxe3 {[%clk 0:00:07]}  Rc6 {[%clk 0:00:16]} 50. Nxh5 {[%clk 0:00:07]}  Nd5 {[%clk 0:00:17]} 51. Re5 {[%clk 0:00:07]}  Nc3 {[%clk 0:00:17]} 52. g4 {[%clk 0:00:07]}  Nd1 {[%clk 0:00:16]} 53. Kg3 {[%clk 0:00:08]}  Rc3+ {[%clk 0:00:17]} 54. Kh4 {[%clk 0:00:08]}  Nf2 {[%clk 0:00:18]} 55. Nf4 {[%clk 0:00:07]}  Rc4 {[%clk 0:00:18]} 56. Kg5 {[%clk 0:00:08]}  Ne4+ {[%clk 0:00:18]} 57. Kg6 {[%clk 0:00:07]}  Ng3 {[%clk 0:00:19]} 58. Re7+ {[%clk 0:00:08]}  Kb6 {[%clk 0:00:19]} 59. Nd5+ {[%clk 0:00:08]}  Kc5 {[%clk 0:00:20]} 60. Nf6 {[%clk 0:00:09]}  Rd4 {[%clk 0:00:19]} 61. h4 {[%clk 0:00:10]}  Kb6 {[%clk 0:00:20]} 62. h5 {[%clk 0:00:10]}  Rd6 {[%clk 0:00:20]} 63. h6 {[%clk 0:00:10]}  Ne2 {[%clk 0:00:19]} 64. h7 {[%clk 0:00:10]}  Nf4+ {[%clk 0:00:20]} 65. Kg7 {[%clk 0:00:11]}  Ne6+ {[%clk 0:00:20]} 66. Rxe6 {[%clk 0:00:11]}  Rxe6 {[%clk 0:00:20]} 67. h8=Q {[%clk 0:00:12]}  Re7+ {[%clk 0:00:21]} 68. Kg6 {[%clk 0:00:12]} 1-0


[Site "https://www.chess.com"]

[Event "Titled Tuesday Blitz February 14 Early 2023"]
[White "Chan, Kim Yew"]
[Black "Postny, Evgeny"]
[WhiteFideId "5717981"]
[BlackFideId "2804344"]
[WhiteElo "2340"]
[BlackElo "2549"]
[Result "0-1"]
[Round "01"]
[TimeControl "180+2"]
[Date "2023.02.15"]
[WhiteClock "0:00:02"]
[BlackClock "0:00:36"]

1. Nf3 {[%clk 0:00:30]}  c5 {[%clk 0:03:00]} 2. g3 {[%clk 0:00:30]}  d5 {[%clk 0:03:00]} 3. Bg2 {[%clk 0:00:30]}  Nf6 {[%clk 0:03:00]} 4. O-O {[%clk 0:00:29]}  e6 {[%clk 0:03:00]} 5. d4 {[%clk 0:00:30]}  Nc6 {[%clk 0:02:56]} 6. c4 {[%clk 0:00:29]}  cxd4 {[%clk 0:02:53]} 7. Nxd4 {[%clk 0:00:29]}  Bc5 {[%clk 0:02:54]} 8. Nb3 {[%clk 0:00:29]}  Bb6 {[%clk 0:02:53]} 9. cxd5 {[%clk 0:00:28]}  exd5 {[%clk 0:02:53]} 10. Nc3 {[%clk 0:00:27]}  d4 {[%clk 0:02:51]} 11. Na4 {[%clk 0:00:27]}  O-O {[%clk 0:02:50]} 12. Bg5 {[%clk 0:00:26]}  h6 {[%clk 0:02:50]} 13. Bxf6 {[%clk 0:00:27]}  Qxf6 {[%clk 0:02:51]} 14. Nxb6 {[%clk 0:00:27]}  axb6 {[%clk 0:02:51]} 15. Qd2 {[%clk 0:00:27]}  Bg4 {[%clk 0:02:39]} 16. h3 {[%clk 0:00:26]}  Be6 {[%clk 0:02:38]} 17. Rfd1 {[%clk 0:00:26]}  Rxa2 {[%clk 0:02:34]} 18. Rxa2 {[%clk 0:00:12]}  Bxb3 {[%clk 0:02:34]} 19. Ra3 {[%clk 0:00:12]}  Bxd1 {[%clk 0:02:34]} 20. Qxd1 {[%clk 0:00:13]}  Re8 {[%clk 0:02:26]} 21. Rd3 {[%clk 0:00:14]}  Qe6 {[%clk 0:02:23]} 22. Bf1 {[%clk 0:00:07]}  Qf5 {[%clk 0:02:02]} 23. Bg2 {[%clk 0:00:06]}  Qe5 {[%clk 0:01:42]} 24. Kf1 {[%clk 0:00:06]}  h5 {[%clk 0:01:32]} 25. h4 {[%clk 0:00:06]}  g6 {[%clk 0:01:32]} 26. Bxc6 {[%clk 0:00:06]}  bxc6 {[%clk 0:01:32]} 27. Rxd4 {[%clk 0:00:06]}  c5 {[%clk 0:01:29]} 28. Rd8 {[%clk 0:00:06]}  Kg7 {[%clk 0:01:18]} 29. Rxe8 {[%clk 0:00:06]}  Qxe8 {[%clk 0:01:19]} 30. Qd6 {[%clk 0:00:06]}  Qe4 {[%clk 0:01:16]} 31. Kg1 {[%clk 0:00:04]}  Qb1+ {[%clk 0:01:07]} 32. Kg2 {[%clk 0:00:04]}  Qxb2 {[%clk 0:01:08]} 33. e4 {[%clk 0:00:03]}  Qd4 {[%clk 0:01:06]} 34. Qc6 {[%clk 0:00:03]}  c4 {[%clk 0:01:04]} 35. f4 {[%clk 0:00:04]}  c3 {[%clk 0:00:54]} 36. e5 {[%clk 0:00:04]}  Qc5 {[%clk 0:00:48]} 37. Qf6+ {[%clk 0:00:04]}  Kg8 {[%clk 0:00:48]} 38. e6 {[%clk 0:00:03]}  Qc6+ {[%clk 0:00:44]} 39. Kh2 {[%clk 0:00:03]}  Qxe6 {[%clk 0:00:44]} 40. Qxc3 {[%clk 0:00:04]}  b5 {[%clk 0:00:43]} 41. Qc5 {[%clk 0:00:03]}  Qe2+ {[%clk 0:00:37]} 42. Kh3 {[%clk 0:00:02]}  Qc4 {[%clk 0:00:36]} 43. Qe7 {[%clk 0:00:02]}  Qe6+ {[%clk 0:00:36]} 0-1


[Site "https://www.chess.com"]

[Event "Titled Tuesday Blitz February 14 Early 2023"]
[White "Tiarks, Jann-Christian"]
[Black "Seo, Jung Min"]
[WhiteFideId "12951595"]
[BlackFideId "1734687"]
[WhiteElo "2222"]
[BlackElo "2494"]
[Result "0-1"]
[Round "01"]
[TimeControl "180+2"]
[Date "2023.02.15"]
[WhiteClock "0:00:17"]
[BlackClock "0:01:20"]

1. e4 {[%clk 0:02:55]}  c6 {[%clk 0:03:00]} 2. Nf3 {[%clk 0:02:52]}  d5 {[%clk 0:03:00]} 3. exd5 {[%clk 0:02:53]}  cxd5 {[%clk 0:03:00]} 4. Ne5 {[%clk 0:02:53]}  Nd7 {[%clk 0:02:56]} 5. d4 {[%clk 0:02:49]}  Ngf6 {[%clk 0:02:54]} 6. Be2 {[%clk 0:02:46]}  g6 {[%clk 0:02:50]} 7. O-O {[%clk 0:02:45]}  Bg7 {[%clk 0:02:50]} 8. Re1 {[%clk 0:02:40]}  O-O {[%clk 0:02:50]} 9. Bf4 {[%clk 0:02:36]}  Qb6 {[%clk 0:02:43]} 10. b3 {[%clk 0:02:32]}  Ne8 {[%clk 0:02:37]} 11. Nc3 {[%clk 0:02:28]}  e6 {[%clk 0:02:35]} 12. Na4 {[%clk 0:02:20]}  Qd8 {[%clk 0:02:34]} 13. c4 {[%clk 0:02:16]}  dxc4 {[%clk 0:02:32]} 14. bxc4 {[%clk 0:02:14]}  Nxe5 {[%clk 0:02:31]} 15. dxe5 {[%clk 0:02:11]}  Bd7 {[%clk 0:02:31]} 16. Bf3 {[%clk 0:02:05]}  Qc7 {[%clk 0:02:28]} 17. Rb1 {[%clk 0:02:00]}  Rb8 {[%clk 0:02:27]} 18. Qb3 {[%clk 0:01:47]}  Bh8 {[%clk 0:02:21]} 19. Be3 {[%clk 0:01:39]}  b6 {[%clk 0:02:16]} 20. c5 {[%clk 0:01:35]}  Bxe5 {[%clk 0:02:15]} 21. cxb6 {[%clk 0:01:34]}  axb6 {[%clk 0:02:12]} 22. Bxb6 {[%clk 0:01:30]}  Bxh2+ {[%clk 0:02:06]} 23. Kh1 {[%clk 0:01:28]}  Qf4 {[%clk 0:02:05]} 24. Nc5 {[%clk 0:01:11]}  Nf6 {[%clk 0:01:52]} 25. g3 {[%clk 0:01:07]}  Bxg3 {[%clk 0:01:47]} 26. fxg3 {[%clk 0:01:08]}  Qxg3 {[%clk 0:01:48]} 27. Bg2 {[%clk 0:01:04]}  Qh4+ {[%clk 0:01:46]} 28. Qh3 {[%clk 0:01:03]}  Qxh3+ {[%clk 0:01:42]} 29. Bxh3 {[%clk 0:01:02]}  Bc6+ {[%clk 0:01:42]} 30. Bg2 {[%clk 0:01:01]}  Bxg2+ {[%clk 0:01:42]} 31. Kxg2 {[%clk 0:01:02]}  Rfc8 {[%clk 0:01:37]} 32. a4 {[%clk 0:00:50]}  Nd5 {[%clk 0:01:36]} 33. Nd7 {[%clk 0:00:50]}  Rb7 {[%clk 0:01:32]} 34. a5 {[%clk 0:00:22]}  Rxd7 {[%clk 0:01:31]} 35. Rec1 {[%clk 0:00:19]}  Rxc1 {[%clk 0:01:30]} 36. Rxc1 {[%clk 0:00:20]}  Nxb6 {[%clk 0:01:29]} 37. axb6 {[%clk 0:00:21]}  Rd2+ {[%clk 0:01:29]} 38. Kf3 {[%clk 0:00:20]}  Rb2 {[%clk 0:01:29]} 39. Rc6 {[%clk 0:00:18]}  h5 {[%clk 0:01:28]} 40. Kf4 {[%clk 0:00:18]}  Kg7 {[%clk 0:01:28]} 41. Ke5 {[%clk 0:00:17]}  h4 {[%clk 0:01:27]} 42. Kd6 {[%clk 0:00:16]}  g5 {[%clk 0:01:26]} 43. Kc7 {[%clk 0:00:16]}  g4 {[%clk 0:01:25]} 44. b7 {[%clk 0:00:16]}  Rxb7+ {[%clk 0:01:24]} 45. Kxb7 {[%clk 0:00:17]}  h3 {[%clk 0:01:23]} 46. Rc4 {[%clk 0:00:17]}  f5 {[%clk 0:01:22]} 47. Kc6 {[%clk 0:00:17]}  h2 {[%clk 0:01:21]} 48. Rc2 {[%clk 0:00:17]}  h1=Q+ {[%clk 0:01:20]} 0-1


[Site "https://www.chess.com"]